[Event "Titled Tuesday Blitz July 4 Early 2023"]
[White "Cherniaiev, Tykhon"]
[Black "Hoffmann, Asa"]
[WhiteFideId "14182360"]
[BlackFideId "2001470"]
[WhiteElo "2699"]
[BlackElo "2430"]
[Result "1-0"]
[Round "2"]
[TimeControl "180+2"]
[Date "2023.07.04"]
[WhiteClock "0:00:30"]
[BlackClock "0:00:48"]
[Board "84"]

1. Nf3 {[%clk 0:03:00]}  d6 {[%clk 0:02:59]} 2. d4 {[%clk 0:03:01]}  Bg4 {[%clk 0:02:55]} 3. Nbd2 {[%clk 0:02:58]}  Nf6 {[%clk 0:02:55]} 4. g3 {[%clk 0:02:59]}  Nbd7 {[%clk 0:02:54]} 5. Bg2 {[%clk 0:02:59]}  c6 {[%clk 0:02:54]} 6. O-O {[%clk 0:03:00]}  e5 {[%clk 0:02:54]} 7. h3 {[%clk 0:02:59]}  Bh5 {[%clk 0:02:54]} 8. dxe5 {[%clk 0:02:44]}  dxe5 {[%clk 0:02:53]} 9. Nc4 {[%clk 0:02:39]}  Qc7 {[%clk 0:02:53]} 10. b3 {[%clk 0:02:13]}  O-O-O {[%clk 0:02:31]} 11. Bb2 {[%clk 0:02:06]}  Bc5 {[%clk 0:02:26]} 12. Qc1 {[%clk 0:01:43]}  Rhe8 {[%clk 0:02:23]} 13. e3 {[%clk 0:01:27]}  b5 {[%clk 0:02:17]} 14. Ncd2 {[%clk 0:01:24]}  Qb6 {[%clk 0:02:10]} 15. a4 {[%clk 0:01:21]}  a6 {[%clk 0:02:08]} 16. axb5 {[%clk 0:01:20]}  axb5 {[%clk 0:02:08]} 17. c4 {[%clk 0:01:19]}  b4 {[%clk 0:02:04]} 18. Nh4 {[%clk 0:00:49]}  Kb7 {[%clk 0:01:57]} 19. Ne4 {[%clk 0:00:39]}  Bg6 {[%clk 0:01:48]} 20. Nxg6 {[%clk 0:00:36]}  hxg6 {[%clk 0:01:48]} 21. Ng5 {[%clk 0:00:35]}  Rf8 {[%clk 0:01:43]} 22. Rd1 {[%clk 0:00:35]}  Ra8 {[%clk 0:01:27]} 23. Rxa8 {[%clk 0:00:34]}  Kxa8 {[%clk 0:01:27]} 24. Qa1+ {[%clk 0:00:31]}  Kb7 {[%clk 0:01:26]} 25. Bxe5 {[%clk 0:00:31]}  Nxe5 {[%clk 0:01:21]} 26. Qxe5 {[%clk 0:00:32]}  Re8 {[%clk 0:01:11]} 27. Qf4 {[%clk 0:00:32]}  Rd8 {[%clk 0:01:10]} 28. Rxd8 {[%clk 0:00:28]}  Qxd8 {[%clk 0:01:10]} 29. Nxf7 {[%clk 0:00:29]}  Qd1+ {[%clk 0:01:05]} 30. Kh2 {[%clk 0:00:29]}  Qxb3 {[%clk 0:01:05]} 31. Nd8+ {[%clk 0:00:28]}  Kc8 {[%clk 0:01:01]} 32. Nxc6 {[%clk 0:00:28]}  Qd1 {[%clk 0:00:57]} 33. Qb8+ {[%clk 0:00:28]}  Kd7 {[%clk 0:00:56]} 34. Qd8+ {[%clk 0:00:29]}  Ke6 {[%clk 0:00:48]} 35. Qxd1 {[%clk 0:00:30]} 1-0


[Site "https://www.chess.com"]

[Event "Titled Tuesday Blitz July 4 Early 2023"]
[White "Williams, Simon K"]
[Black "Grossboss19"]
[WhiteFideId "404454"]
[WhiteElo "2696"]
[BlackElo "2416"]
[Result "1/2-1/2"]
[Round "2"]
[TimeControl "180+2"]
[Date "2023.07.04"]
[WhiteClock "0:00:09"]
[BlackClock "0:00:08"]
[Board "86"]

1. d4 {[%clk 0:03:00]}  Nf6 {[%clk 0:02:56]} 2. c4 {[%clk 0:02:59]}  e6 {[%clk 0:02:56]} 3. Nf3 {[%clk 0:02:58]}  d5 {[%clk 0:02:55]} 4. Nc3 {[%clk 0:02:57]}  Bb4 {[%clk 0:02:48]} 5. cxd5 {[%clk 0:02:55]}  exd5 {[%clk 0:02:47]} 6. Bg5 {[%clk 0:02:55]}  O-O {[%clk 0:02:46]} 7. e3 {[%clk 0:02:55]}  h6 {[%clk 0:02:44]} 8. Bh4 {[%clk 0:02:54]}  Bf5 {[%clk 0:02:42]} 9. Bd3 {[%clk 0:02:45]}  Bxd3 {[%clk 0:02:42]} 10. Qxd3 {[%clk 0:02:44]}  c6 {[%clk 0:02:40]} 11. Ne5 {[%clk 0:02:37]}  Be7 {[%clk 0:02:36]} 12. O-O {[%clk 0:02:35]}  Nfd7 {[%clk 0:02:36]} 13. Bg3 {[%clk 0:02:31]}  Nxe5 {[%clk 0:02:35]} 14. dxe5 {[%clk 0:02:31]}  f6 {[%clk 0:02:26]} 15. e4 {[%clk 0:02:12]}  dxe4 {[%clk 0:02:17]} 16. Qxe4 {[%clk 0:02:11]}  fxe5 {[%clk 0:02:16]} 17. Bxe5 {[%clk 0:02:05]}  Bf6 {[%clk 0:02:11]} 18. Rad1 {[%clk 0:01:53]}  Qe7 {[%clk 0:02:05]} 19. Qc4+ {[%clk 0:01:40]}  Kh8 {[%clk 0:02:05]} 20. Bd6 {[%clk 0:01:34]}  Qf7 {[%clk 0:02:03]} 21. Qxf7 {[%clk 0:01:14]}  Rxf7 {[%clk 0:02:03]} 22. Rfe1 {[%clk 0:01:13]}  Nd7 {[%clk 0:01:41]} 23. Bg3 {[%clk 0:01:07]}  Nb6 {[%clk 0:01:37]} 24. Rd3 {[%clk 0:00:57]}  Rff8 {[%clk 0:01:28]} 25. b3 {[%clk 0:00:56]}  Rad8 {[%clk 0:01:28]} 26. Red1 {[%clk 0:00:56]}  Rxd3 {[%clk 0:01:19]} 27. Rxd3 {[%clk 0:00:55]}  Rd8 {[%clk 0:01:19]} 28. Rxd8+ {[%clk 0:00:55]}  Bxd8 {[%clk 0:01:20]} 29. Kf1 {[%clk 0:00:55]}  Kg8 {[%clk 0:01:19]} 30. Ke2 {[%clk 0:00:55]}  Kf7 {[%clk 0:01:19]} 31. Kd3 {[%clk 0:00:55]}  Ke6 {[%clk 0:01:20]} 32. Ne4 {[%clk 0:00:53]}  Be7 {[%clk 0:01:18]} 33. Bf4 {[%clk 0:00:47]}  Nd5 {[%clk 0:01:16]} 34. Bd2 {[%clk 0:00:47]}  b5 {[%clk 0:01:10]} 35. Kd4 {[%clk 0:00:42]}  Nb6 {[%clk 0:00:53]} 36. g4 {[%clk 0:00:37]}  Nd7 {[%clk 0:00:51]} 37. f4 {[%clk 0:00:37]}  c5+ {[%clk 0:00:50]} 38. Kd3 {[%clk 0:00:35]}  a6 {[%clk 0:00:41]} 39. f5+ {[%clk 0:00:35]}  Ke5 {[%clk 0:00:41]} 40. Bc3+ {[%clk 0:00:35]}  Kf4 {[%clk 0:00:40]} 41. Bxg7 {[%clk 0:00:35]}  Kxg4 {[%clk 0:00:39]} 42. f6 {[%clk 0:00:35]}  Bd8 {[%clk 0:00:34]} 43. f7 {[%clk 0:00:35]}  Be7 {[%clk 0:00:33]} 44. Bxh6 {[%clk 0:00:34]}  Ne5+ {[%clk 0:00:33]} 45. Ke3 {[%clk 0:00:32]}  Nxf7 {[%clk 0:00:33]} 46. Bf4 {[%clk 0:00:32]}  c4 {[%clk 0:00:28]} 47. bxc4 {[%clk 0:00:32]}  bxc4 {[%clk 0:00:29]} 48. Bc7 {[%clk 0:00:31]}  Bd8 {[%clk 0:00:20]} 49. Bxd8 {[%clk 0:00:30]}  Nxd8 {[%clk 0:00:21]} 50. Kd4 {[%clk 0:00:30]}  Kh3 {[%clk 0:00:21]} 51. Kxc4 {[%clk 0:00:30]}  Kxh2 {[%clk 0:00:22]} 52. Kc5 {[%clk 0:00:30]}  Kg2 {[%clk 0:00:22]} 53. Kb6 {[%clk 0:00:30]}  Kf3 {[%clk 0:00:23]} 54. Nc5 {[%clk 0:00:30]}  Ke3 {[%clk 0:00:23]} 55. Kxa6 {[%clk 0:00:30]}  Kd4 {[%clk 0:00:22]} 56. Kb6 {[%clk 0:00:29]}  Nf7 {[%clk 0:00:19]} 57. a4 {[%clk 0:00:29]}  Nd6 {[%clk 0:00:20]} 58. Ne6+ {[%clk 0:00:27]}  Kc3 {[%clk 0:00:18]} 59. Kc5 {[%clk 0:00:24]}  Ne4+ {[%clk 0:00:15]} 60. Kb5 {[%clk 0:00:22]}  Nd6+ {[%clk 0:00:14]} 61. Kc6 {[%clk 0:00:17]}  Kb4 {[%clk 0:00:13]} 62. Nc5 {[%clk 0:00:17]}  Ne4 {[%clk 0:00:09]} 63. Kb6 {[%clk 0:00:10]}  Nxc5 {[%clk 0:00:08]} 64. a5 {[%clk 0:00:10]}  Kc4 {[%clk 0:00:08]} 65. a6 {[%clk 0:00:09]}  Nxa6 {[%clk 0:00:08]} 1/2-1/2


[Site "https://www.chess.com"]

[Event "Titled Tuesday Blitz July 4 Early 2023"]
[White "Petrosian, Karlen"]
[Black "Fernandez Siles, Luis"]
[WhiteFideId "4176146"]
[BlackFideId "2209420"]
[WhiteElo "2682"]
[BlackElo "2372"]
[Result "1-0"]
[Round "2"]
[TimeControl "180+2"]
[Date "2023.07.04"]
[WhiteClock "0:00:47"]
[BlackClock "0:00:18"]
[Board "92"]

1. e4 {[%clk 0:03:00]}  c5 {[%clk 0:02:59]} 2. c3 {[%clk 0:03:00]}  Nf6 {[%clk 0:02:59]} 3. e5 {[%clk 0:03:00]}  Nd5 {[%clk 0:02:59]} 4. Nf3 {[%clk 0:03:01]}  Nc6 {[%clk 0:02:58]} 5. d4 {[%clk 0:03:01]}  cxd4 {[%clk 0:02:58]} 6. cxd4 {[%clk 0:03:02]}  d6 {[%clk 0:02:59]} 7. Bc4 {[%clk 0:03:03]}  Nb6 {[%clk 0:02:58]} 8. Bb5 {[%clk 0:03:03]}  dxe5 {[%clk 0:02:58]} 9. Nxe5 {[%clk 0:03:03]}  Bd7 {[%clk 0:02:59]} 10. Nxd7 {[%clk 0:03:03]}  Qxd7 {[%clk 0:02:59]} 11. Nc3 {[%clk 0:03:04]}  e6 {[%clk 0:02:59]} 12. O-O {[%clk 0:03:02]}  Be7 {[%clk 0:02:59]} 13. Be3 {[%clk 0:02:59]}  O-O {[%clk 0:02:58]} 14. Qg4 {[%clk 0:02:54]}  Kh8 {[%clk 0:02:42]} 15. Rfd1 {[%clk 0:02:52]}  Nd5 {[%clk 0:02:41]} 16. Nxd5 {[%clk 0:02:43]}  Qxd5 {[%clk 0:02:39]} 17. Bd3 {[%clk 0:02:44]}  f5 {[%clk 0:02:35]} 18. Qe2 {[%clk 0:02:40]}  Bf6 {[%clk 0:02:27]} 19. Bc4 {[%clk 0:02:39]}  Qe4 {[%clk 0:02:09]} 20. f3 {[%clk 0:02:36]}  Qh4 {[%clk 0:02:09]} 21. Bf2 {[%clk 0:02:26]}  Qf4 {[%clk 0:01:39]} 22. g3 {[%clk 0:02:17]}  Qh6 {[%clk 0:01:19]} 23. Bxe6 {[%clk 0:02:12]}  Rae8 {[%clk 0:01:15]} 24. d5 {[%clk 0:02:13]}  Ne5 {[%clk 0:01:07]} 25. Bd4 {[%clk 0:02:04]}  Ng6 {[%clk 0:01:00]} 26. Bxf6 {[%clk 0:02:01]}  Rxf6 {[%clk 0:01:01]} 27. Qb5 {[%clk 0:01:54]}  Ref8 {[%clk 0:00:57]} 28. Re1 {[%clk 0:01:48]}  f4 {[%clk 0:00:57]} 29. g4 {[%clk 0:01:44]}  Qh3 {[%clk 0:00:56]} 30. Qf1 {[%clk 0:01:44]}  Qh6 {[%clk 0:00:48]} 31. Rac1 {[%clk 0:01:42]}  Nh4 {[%clk 0:00:46]} 32. Rc7 {[%clk 0:01:38]}  Qg5 {[%clk 0:00:40]} 33. Kh1 {[%clk 0:01:18]}  Rh6 {[%clk 0:00:37]} 34. Rc8 {[%clk 0:01:12]}  Rxc8 {[%clk 0:00:30]} 35. Bxc8 {[%clk 0:01:13]}  Qd8 {[%clk 0:00:20]} 36. Qe2 {[%clk 0:00:50]}  Ng6 {[%clk 0:00:18]} 37. Qe8+ {[%clk 0:00:47]} 1-0


[Site "https://www.chess.com"]

[Event "Titled Tuesday Blitz July 4 Early 2023"]
[White "Fromm, Marius"]
[Black "Glavina, Pablo"]
[WhiteFideId "12993190"]
[BlackFideId "100234"]
[WhiteElo "2678"]
[BlackElo "2363"]
[Result "1-0"]
[Round "2"]
[TimeControl "180+2"]
[Date "2023.07.04"]
[WhiteClock "0:00:32"]
[BlackClock "0:00:00"]
[Board "93"]

1. e4 {[%clk 0:03:00]}  c6 {[%clk 0:02:59]} 2. d4 {[%clk 0:03:00]}  d5 {[%clk 0:02:59]} 3. exd5 {[%clk 0:03:01]}  cxd5 {[%clk 0:03:00]} 4. Bd3 {[%clk 0:03:01]}  Nc6 {[%clk 0:03:00]} 5. c3 {[%clk 0:03:02]}  Qc7 {[%clk 0:03:00]} 6. h3 {[%clk 0:03:01]}  g6 {[%clk 0:03:00]} 7. Nf3 {[%clk 0:03:01]}  Bf5 {[%clk 0:02:59]} 8. Be2 {[%clk 0:03:01]}  Nf6 {[%clk 0:02:59]} 9. O-O {[%clk 0:03:01]}  Bg7 {[%clk 0:02:58]} 10. Re1 {[%clk 0:03:01]}  O-O {[%clk 0:02:59]} 11. Be3 {[%clk 0:03:02]}  h6 {[%clk 0:02:58]} 12. Nbd2 {[%clk 0:03:02]}  g5 {[%clk 0:02:57]} 13. Bf1 {[%clk 0:03:03]}  e6 {[%clk 0:02:57]} 14. Rc1 {[%clk 0:03:01]}  Rac8 {[%clk 0:02:52]} 15. b4 {[%clk 0:03:01]}  Bg6 {[%clk 0:02:44]} 16. a4 {[%clk 0:02:58]}  Nd7 {[%clk 0:02:43]} 17. Nb3 {[%clk 0:02:56]}  e5 {[%clk 0:02:35]} 18. b5 {[%clk 0:02:37]}  Na5 {[%clk 0:02:28]} 19. dxe5 {[%clk 0:02:27]}  Nxe5 {[%clk 0:02:23]} 20. Nxe5 {[%clk 0:02:23]}  Bxe5 {[%clk 0:02:21]} 21. Nxa5 {[%clk 0:02:18]}  Qxa5 {[%clk 0:02:21]} 22. Bd4 {[%clk 0:02:04]}  Bf4 {[%clk 0:01:53]} 23. Ra1 {[%clk 0:01:58]}  Rfe8 {[%clk 0:01:36]} 24. g3 {[%clk 0:01:42]}  Rxe1 {[%clk 0:01:20]} 25. Qxe1 {[%clk 0:01:42]}  Bd6 {[%clk 0:01:21]} 26. Bg2 {[%clk 0:01:39]}  Rd8 {[%clk 0:00:39]} 27. Bxd5 {[%clk 0:01:30]}  a6 {[%clk 0:00:35]} 28. c4 {[%clk 0:01:20]}  Qc7 {[%clk 0:00:31]} 29. Bb2 {[%clk 0:01:09]}  Kh7 {[%clk 0:00:12]} 30. Qc3 {[%clk 0:01:05]}  Rg8 {[%clk 0:00:12]} 31. Re1 {[%clk 0:01:04]}  Qd7 {[%clk 0:00:11]} 32. Kg2 {[%clk 0:01:00]}  Bf5 {[%clk 0:00:10]} 33. g4 {[%clk 0:00:50]}  Bg6 {[%clk 0:00:10]} 34. Qf6 {[%clk 0:00:48]}  Bc5 {[%clk 0:00:05]} 35. bxa6 {[%clk 0:00:35]}  bxa6 {[%clk 0:00:06]} 36. Qxa6 {[%clk 0:00:35]}  h5 {[%clk 0:00:05]} 37. Qc6 {[%clk 0:00:32]}  Ba7 {[%clk 0:00:00]} 38. Qxd7 {[%clk 0:00:32]} 1-0


[Site "https://www.chess.com"]

[Event "Titled Tuesday Blitz July 4 Early 2023"]
[White "Stoleriu, George"]
[Black "Rudzinska, Michalina"]
[WhiteFideId "1227505"]
[BlackFideId "1172883"]
[WhiteElo "2674"]
[BlackElo "2356"]
[Result "1-0"]
[Round "2"]
[TimeControl "180+2"]
[Date "2023.07.04"]
[WhiteClock "0:00:55"]
[BlackClock "0:00:00"]
[Board "94"]

1. e4 {[%clk 0:02:53]}  c5 {[%clk 0:02:58]} 2. Nc3 {[%clk 0:02:53]}  e6 {[%clk 0:02:58]} 3. f4 {[%clk 0:02:53]}  Nc6 {[%clk 0:02:59]} 4. Nf3 {[%clk 0:02:52]}  g6 {[%clk 0:02:58]} 5. Bb5 {[%clk 0:02:53]}  d6 {[%clk 0:02:56]} 6. Bxc6+ {[%clk 0:02:53]}  bxc6 {[%clk 0:02:57]} 7. d3 {[%clk 0:02:54]}  Bg7 {[%clk 0:02:57]} 8. O-O {[%clk 0:02:55]}  Rb8 {[%clk 0:02:57]} 9. Qe1 {[%clk 0:02:54]}  Ne7 {[%clk 0:02:58]} 10. b3 {[%clk 0:02:54]}  O-O {[%clk 0:02:54]} 11. Bd2 {[%clk 0:02:54]}  f5 {[%clk 0:02:48]} 12. Qh4 {[%clk 0:02:52]}  d5 {[%clk 0:02:40]} 13. e5 {[%clk 0:02:45]}  d4 {[%clk 0:02:39]} 14. Na4 {[%clk 0:02:44]}  Rb5 {[%clk 0:02:29]} 15. Bc1 {[%clk 0:02:20]}  Nd5 {[%clk 0:02:25]} 16. Qxd8 {[%clk 0:02:19]}  Rxd8 {[%clk 0:02:26]} 17. g3 {[%clk 0:02:17]}  h6 {[%clk 0:02:21]} 18. Ba3 {[%clk 0:02:14]}  Nb4 {[%clk 0:02:18]} 19. Rf2 {[%clk 0:02:05]}  Bf8 {[%clk 0:02:10]} 20. h3 {[%clk 0:01:40]}  Ra5 {[%clk 0:02:09]} 21. Bc1 {[%clk 0:01:27]}  Ba6 {[%clk 0:01:54]} 22. a3 {[%clk 0:01:21]}  Nd5 {[%clk 0:01:47]} 23. Bd2 {[%clk 0:01:21]}  Rb5 {[%clk 0:01:46]} 24. Kh2 {[%clk 0:01:19]}  Rb7 {[%clk 0:01:28]} 25. g4 {[%clk 0:01:11]}  fxg4 {[%clk 0:01:25]} 26. hxg4 {[%clk 0:01:12]}  Be7 {[%clk 0:01:13]} 27. Kg3 {[%clk 0:01:09]}  Rf8 {[%clk 0:00:45]} 28. Rh1 {[%clk 0:01:07]}  Kg7 {[%clk 0:00:41]} 29. Rfh2 {[%clk 0:01:07]}  Rh8 {[%clk 0:00:36]} 30. Ng5 {[%clk 0:01:05]}  Bxg5 {[%clk 0:00:20]} 31. fxg5 {[%clk 0:01:05]}  Rf7 {[%clk 0:00:12]} 32. Rxh6 {[%clk 0:01:04]}  Rxh6 {[%clk 0:00:12]} 33. gxh6+ {[%clk 0:01:04]}  Kh7 {[%clk 0:00:12]} 34. Nxc5 {[%clk 0:01:03]}  Bc8 {[%clk 0:00:11]} 35. Ne4 {[%clk 0:01:03]}  Rf8 {[%clk 0:00:08]} 36. Bg5 {[%clk 0:00:59]}  Ne3 {[%clk 0:00:00]} 37. Bf6 {[%clk 0:00:55]} 1-0


[Site "https://www.chess.com"]

[Event "Titled Tuesday Blitz July 4 Early 2023"]
[White "Velikanov, Alexander"]
[Black "Todorovic, Bojan"]
[WhiteFideId "2039290"]
[BlackFideId "917087"]
[WhiteElo "2669"]
[BlackElo "2352"]
[Result "1-0"]
[Round "2"]
[TimeControl "180+2"]
[Date "2023.07.04"]
[WhiteClock "0:00:18"]
[BlackClock "0:00:09"]
[Board "96"]

1. e4 {[%clk 0:03:00]}  g6 {[%clk 0:02:59]} 2. d4 {[%clk 0:03:00]}  Bg7 {[%clk 0:02:59]} 3. Nc3 {[%clk 0:03:00]}  d6 {[%clk 0:02:59]} 4. Bg5 {[%clk 0:02:56]}  a6 {[%clk 0:02:59]} 5. Qd2 {[%clk 0:02:46]}  b5 {[%clk 0:02:55]} 6. a4 {[%clk 0:02:45]}  b4 {[%clk 0:02:54]} 7. Nd5 {[%clk 0:02:45]}  Nc6 {[%clk 0:02:45]} 8. c3 {[%clk 0:02:32]}  h6 {[%clk 0:02:41]} 9. Bh4 {[%clk 0:02:28]}  Rb8 {[%clk 0:02:36]} 10. Bd3 {[%clk 0:02:11]}  g5 {[%clk 0:02:15]} 11. Bg3 {[%clk 0:02:11]}  e6 {[%clk 0:02:12]} 12. Ne3 {[%clk 0:02:09]}  Nge7 {[%clk 0:02:07]} 13. Ne2 {[%clk 0:02:05]}  Ng6 {[%clk 0:02:04]} 14. O-O {[%clk 0:02:00]}  h5 {[%clk 0:01:48]} 15. h3 {[%clk 0:01:40]}  Bh6 {[%clk 0:01:44]} 16. Qc2 {[%clk 0:01:25]}  Nf4 {[%clk 0:01:28]} 17. Bc4 {[%clk 0:00:58]}  Qf6 {[%clk 0:01:17]} 18. a5 {[%clk 0:00:50]}  Bb7 {[%clk 0:01:14]} 19. Qd2 {[%clk 0:00:32]}  Ne7 {[%clk 0:01:04]} 20. d5 {[%clk 0:00:28]}  bxc3 {[%clk 0:01:02]} 21. Nxc3 {[%clk 0:00:25]}  Neg6 {[%clk 0:00:59]} 22. dxe6 {[%clk 0:00:23]}  fxe6 {[%clk 0:00:59]} 23. b4 {[%clk 0:00:18]}  Ne5 {[%clk 0:00:58]} 24. Be2 {[%clk 0:00:18]}  O-O {[%clk 0:00:46]} 25. Qd1 {[%clk 0:00:15]}  Kh8 {[%clk 0:00:42]} 26. Bxh5 {[%clk 0:00:15]}  Nxh5 {[%clk 0:00:41]} 27. Qxh5 {[%clk 0:00:16]}  Qg6 {[%clk 0:00:36]} 28. Bxe5+ {[%clk 0:00:16]}  Kh7 {[%clk 0:00:34]} 29. Qxg6+ {[%clk 0:00:16]}  Kxg6 {[%clk 0:00:34]} 30. Bg3 {[%clk 0:00:17]}  Bc6 {[%clk 0:00:32]} 31. Rab1 {[%clk 0:00:17]}  Bg7 {[%clk 0:00:31]} 32. Rfc1 {[%clk 0:00:17]}  Bd7 {[%clk 0:00:28]} 33. Ne2 {[%clk 0:00:16]}  Rb7 {[%clk 0:00:28]} 34. f4 {[%clk 0:00:14]}  Rfb8 {[%clk 0:00:27]} 35. f5+ {[%clk 0:00:13]}  Kh5 {[%clk 0:00:24]} 36. Be1 {[%clk 0:00:13]}  Bb5 {[%clk 0:00:22]} 37. g4+ {[%clk 0:00:14]}  Kh6 {[%clk 0:00:21]} 38. Kf2 {[%clk 0:00:14]}  Be5 {[%clk 0:00:19]} 39. Kf3 {[%clk 0:00:15]}  Rf8 {[%clk 0:00:17]} 40. Bc3 {[%clk 0:00:14]}  exf5 {[%clk 0:00:15]} 41. Nxf5+ {[%clk 0:00:14]}  Kg6 {[%clk 0:00:13]} 42. Bxe5 {[%clk 0:00:15]}  dxe5 {[%clk 0:00:13]} 43. Nc3 {[%clk 0:00:15]}  c6 {[%clk 0:00:11]} 44. Nxb5 {[%clk 0:00:15]}  cxb5 {[%clk 0:00:11]} 45. Rc6+ {[%clk 0:00:15]}  Rf6 {[%clk 0:00:11]} 46. Rbc1 {[%clk 0:00:15]}  Rd7 {[%clk 0:00:11]} 47. Rxf6+ {[%clk 0:00:15]}  Kxf6 {[%clk 0:00:11]} 48. Rc6+ {[%clk 0:00:16]}  Kf7 {[%clk 0:00:12]} 49. Rd6 {[%clk 0:00:16]}  Rc7 {[%clk 0:00:12]} 50. Rxa6 {[%clk 0:00:17]}  Rc3+ {[%clk 0:00:12]} 51. Kg2 {[%clk 0:00:17]}  Rc2+ {[%clk 0:00:12]} 52. Kf3 {[%clk 0:00:17]}  Rc3+ {[%clk 0:00:13]} 53. Ke2 {[%clk 0:00:18]}  Rxh3 {[%clk 0:00:12]} 54. Rb6 {[%clk 0:00:18]}  Rh2+ {[%clk 0:00:09]} 55. Kf3 {[%clk 0:00:18]} 1-0


[Site "https://www.chess.com"]

[Event "Titled Tuesday Blitz July 4 Early 2023"]
[White "MAHanif"]
[Black "Czopor, Maciej"]
[BlackFideId "21805431"]
[WhiteElo "2349"]
[BlackElo "2669"]
[Result "0-1"]
[Round "2"]
[TimeControl "180+2"]
[Date "2023.07.04"]
[WhiteClock "0:00:00"]
[BlackClock "0:00:02"]
[Board "97"]

1. d4 {[%clk 0:02:56]}  Nf6 {[%clk 0:02:56]} 2. Nf3 {[%clk 0:02:56]}  b6 {[%clk 0:02:56]} 3. g3 {[%clk 0:02:53]}  Bb7 {[%clk 0:02:55]} 4. Bg2 {[%clk 0:02:47]}  e6 {[%clk 0:02:55]} 5. O-O {[%clk 0:02:46]}  Be7 {[%clk 0:02:52]} 6. Nbd2 {[%clk 0:02:46]}  O-O {[%clk 0:02:52]} 7. c3 {[%clk 0:02:45]}  c5 {[%clk 0:02:48]} 8. Nb3 {[%clk 0:02:40]}  Nc6 {[%clk 0:02:41]} 9. Be3 {[%clk 0:02:37]}  d6 {[%clk 0:02:25]} 10. Bg5 {[%clk 0:02:29]}  h6 {[%clk 0:02:23]} 11. Bf4 {[%clk 0:02:27]}  Re8 {[%clk 0:02:20]} 12. Re1 {[%clk 0:02:25]}  Bf8 {[%clk 0:02:18]} 13. e4 {[%clk 0:02:22]}  Rc8 {[%clk 0:02:13]} 14. Bxd6 {[%clk 0:02:14]}  Bxd6 {[%clk 0:02:09]} 15. e5 {[%clk 0:02:14]}  Be7 {[%clk 0:02:04]} 16. exf6 {[%clk 0:02:13]}  gxf6 {[%clk 0:02:02]} 17. dxc5 {[%clk 0:02:12]}  bxc5 {[%clk 0:02:02]} 18. Qc1 {[%clk 0:02:08]}  Bf8 {[%clk 0:01:58]} 19. Qe3 {[%clk 0:02:04]}  Na5 {[%clk 0:01:30]} 20. Rad1 {[%clk 0:01:58]}  Qb6 {[%clk 0:01:29]} 21. Nxa5 {[%clk 0:01:52]}  Qxa5 {[%clk 0:01:29]} 22. a3 {[%clk 0:01:48]}  f5 {[%clk 0:01:19]} 23. Ne5 {[%clk 0:01:39]}  Bxg2 {[%clk 0:01:18]} 24. Kxg2 {[%clk 0:01:37]}  Bg7 {[%clk 0:01:15]} 25. Rd7 {[%clk 0:01:30]}  Qa4 {[%clk 0:01:00]} 26. Red1 {[%clk 0:01:24]}  Rc7 {[%clk 0:00:32]} 27. Rxc7 {[%clk 0:01:04]}  Qxd1 {[%clk 0:00:32]} 28. Nxf7 {[%clk 0:00:51]}  Qd5+ {[%clk 0:00:32]} 29. Qf3 {[%clk 0:00:38]}  Rf8 {[%clk 0:00:31]} 30. Qxd5 {[%clk 0:00:35]}  exd5 {[%clk 0:00:32]} 31. Nd6 {[%clk 0:00:34]}  Be5 {[%clk 0:00:25]} 32. Rd7 {[%clk 0:00:32]}  d4 {[%clk 0:00:24]} 33. cxd4 {[%clk 0:00:24]}  Bxd4 {[%clk 0:00:24]} 34. b4 {[%clk 0:00:21]}  cxb4 {[%clk 0:00:23]} 35. axb4 {[%clk 0:00:20]}  f4 {[%clk 0:00:18]} 36. Nb5 {[%clk 0:00:19]}  f3+ {[%clk 0:00:13]} 37. Kf1 {[%clk 0:00:16]}  Rc8 {[%clk 0:00:11]} 38. Ke1 {[%clk 0:00:14]}  Bb6 {[%clk 0:00:11]} 39. Rd3 {[%clk 0:00:12]}  Re8+ {[%clk 0:00:06]} 40. Kd1 {[%clk 0:00:11]}  Bxf2 {[%clk 0:00:07]} 41. Rxf3 {[%clk 0:00:11]}  Bb6 {[%clk 0:00:07]} 42. Nc3 {[%clk 0:00:10]}  Kg7 {[%clk 0:00:06]} 43. Kc2 {[%clk 0:00:09]}  Re1 {[%clk 0:00:06]} 44. Rd3 {[%clk 0:00:08]}  Rh1 {[%clk 0:00:05]} 45. Rd2 {[%clk 0:00:08]}  Be3 {[%clk 0:00:05]} 46. Re2 {[%clk 0:00:07]}  Bb6 {[%clk 0:00:06]} 47. Nd5 {[%clk 0:00:06]}  Bd4 {[%clk 0:00:06]} 48. Nf4 {[%clk 0:00:05]}  Kf6 {[%clk 0:00:04]} 49. Ne6 {[%clk 0:00:05]}  Be5 {[%clk 0:00:04]} 50. Nc5 {[%clk 0:00:04]}  Bd4 {[%clk 0:00:02]} 51. Ne4+ {[%clk 0:00:04]}  Kf5 {[%clk 0:00:02]} 52. Nd2 {[%clk 0:00:03]}  Kg4 {[%clk 0:00:03]} 53. Nb3 {[%clk 0:00:03]}  Bb6 {[%clk 0:00:03]} 54. Nc5 {[%clk 0:00:03]}  Kf3 {[%clk 0:00:03]} 55. Rd2 {[%clk 0:00:02]}  a5 {[%clk 0:00:04]} 56. Nd3 {[%clk 0:00:00]}  Be3 {[%clk 0:00:02]} 0-1


[Site "https://www.chess.com"]

[Event "Titled Tuesday Blitz July 4 Early 2023"]
[White "Rian, Kapriaga"]
[Black "Fakhrutdinov, Timur"]
[WhiteFideId "7103263"]
[BlackFideId "24176702"]
[WhiteElo "2348"]
[BlackElo "2669"]
[Result "1/2-1/2"]
[Round "2"]
[TimeControl "180+2"]
[Date "2023.07.04"]
[WhiteClock "0:01:11"]
[BlackClock "0:00:31"]
[Board "98"]

1. d4 {[%clk 0:02:54]}  Nf6 {[%clk 0:02:59]} 2. Nf3 {[%clk 0:02:54]}  e6 {[%clk 0:03:00]} 3. e3 {[%clk 0:02:52]}  c5 {[%clk 0:03:00]} 4. Bd3 {[%clk 0:02:52]}  b6 {[%clk 0:02:59]} 5. O-O {[%clk 0:02:52]}  Bb7 {[%clk 0:02:59]} 6. c4 {[%clk 0:02:52]}  cxd4 {[%clk 0:02:46]} 7. Nxd4 {[%clk 0:02:41]}  d5 {[%clk 0:02:44]} 8. Nc3 {[%clk 0:02:38]}  Nbd7 {[%clk 0:02:37]} 9. cxd5 {[%clk 0:02:31]}  Nxd5 {[%clk 0:02:38]} 10. Nxd5 {[%clk 0:02:29]}  Bxd5 {[%clk 0:02:38]} 11. b3 {[%clk 0:02:27]}  Be7 {[%clk 0:02:37]} 12. Bb2 {[%clk 0:02:26]}  O-O {[%clk 0:02:37]} 13. Rc1 {[%clk 0:02:25]}  Nc5 {[%clk 0:02:31]} 14. Bb1 {[%clk 0:02:21]}  Rc8 {[%clk 0:02:30]} 15. Qg4 {[%clk 0:02:15]}  g6 {[%clk 0:02:12]} 16. Rfd1 {[%clk 0:02:12]}  Qe8 {[%clk 0:01:49]} 17. h4 {[%clk 0:01:56]}  f5 {[%clk 0:01:43]} 18. Qg3 {[%clk 0:01:48]}  Rd8 {[%clk 0:01:13]} 19. h5 {[%clk 0:01:46]}  Bd6 {[%clk 0:01:04]} 20. Qg5 {[%clk 0:01:34]}  Be7 {[%clk 0:00:51]} 21. Qg3 {[%clk 0:01:33]}  Bf6 {[%clk 0:00:37]} 22. Ba3 {[%clk 0:01:13]}  Be7 {[%clk 0:00:31]} 23. Bb2 {[%clk 0:01:11]} 1/2-1/2


[Site "https://www.chess.com"]